bitfinex/quotes_BTCUSD_20220213
["timestamp","ask_amount","ask_price","bid_price","bid_amount"]
[1644789424902,0.48630609,42282.0,42281.0,0.05126897]
[1644789425104,0.81826309,42282.0,42281.0,0.0510566]
[1644789425305,0.48630609,42282.0,42281.0,0.0010566]
[1644789425903,0.48630609,42282.0,42280.0,0.00137068]
[1644789426105,0.28958699,42281.0,42280.0,0.00115831]
[1644789426302,0.45793399,42281.0,42280.0,0.00137068]
[1644789426703,0.55793399,42281.0,42280.0,0.00137068]
[1644789430753,0.55894917,42281.0,42280.0,0.00137068]
[1644789432801,0.89090617,42281.0,42280.0,0.00137068]
[1644789433001,0.55894917,42281.0,42280.0,0.00137068]
[1644789434403,0.26936218,42281.0,42280.0,0.00137068]
[1644789434803,0.16936218,42281.0,42280.0,0.00137068]
[1644789435955,0.05101518,42281.0,42280.0,0.00021237]
[1644789436159,0.11017718,42281.0,42279.0,0.30986837]
[1644789436355,0.11017718,42281.0,42279.0,0.28986837]
[1644789438862,0.11017718,42281.0,42280.0,0.331957]
[1644789439107,0.05101518,42281.0,42280.0,0.33216937]
[1644789442857,0.05101518,42281.0,42280.0,0.32216937]
[1644789447505,0.059155,42283.0,42281.0,0.10203036]
[1644789447701,0.059155,42283.0,42281.0,0.42417973]
[1644789447902,0.059155,42283.0,42281.0,0.47417973]
[1644789448906,0.118314,42283.0,42281.0,0.47417973]
[1644789449107,0.059155,42283.0,42281.0,0.47417973]
[1644789450967,0.118314,42283.0,42281.0,0.47417973]
[1644789452368,0.059155,42283.0,42281.0,0.47417973]
[1644789455209,0.109154,42284.0,42281.0,0.53333373]
[1644789455408,0.109154,42284.0,42282.0,0.172216]
[1644789455607,0.059154,42284.0,42282.0,0.17242837]
[1644789455808,0.109154,42284.0,42282.0,0.17242837]
[1644789456210,0.059157,42283.0,42282.0,0.17242837]
[1644789457859,0.059157,42283.0,42282.0,0.172216]
[1644789458458,0.059157,42283.0,42282.0,0.16825377]
[1644789460962,0.109154,42284.0,42282.0,0.16825377]
[1644789461162,0.168309,42284.0,42282.0,0.16825377]
[1644789464812,0.00124153,42283.0,42282.0,0.16825377]
[1644789466564,0.16313902,42284.0,42282.0,0.16825377]
[1644789466965,0.16313902,42284.0,42282.0,0.16550051]
[1644789467169,0.16313902,42284.0,42282.0,0.332026]
[1644789467367,0.109155,42284.0,42283.0,0.155399]
[1644789467566,0.109155,42284.0,42281.0,0.24653036]
[1644789467966,0.109155,42284.0,42282.0,0.332026]
[1644789468767,0.109155,42284.0,42281.0,0.24653036]
[1644789469009,0.059166,42283.0,42281.0,0.24653036]
[1644789469211,0.05,42282.0,42281.0,0.24653036]
[1644789469610,0.109166,42283.0,42281.0,0.24653036]
[1644789469820,0.61806796,42282.0,42281.0,0.19653036]
[1644789470015,0.28604196,42282.0,42281.0,0.19653036]
[1644789470212,0.52927198,42282.0,42281.0,0.19653036]
[1644789470512,0.38604196,42282.0,42281.0,0.19653036]
[1644789470811,0.43314196,42282.0,42281.0,0.19653036]
[1644789471210,0.43314196,42282.0,42281.0,0.24531977]
[1644789471612,0.43314196,42282.0,42281.0,0.24249623]
[1644789472518,0.76516796,42282.0,42281.0,0.24249623]
[1644789472959,0.90839798,42282.0,42281.0,0.24249623]
[1644789473558,0.57637198,42282.0,42281.0,0.24249623]
[1644789473759,0.90839798,42282.0,42281.0,0.24249623]
[1644789473959,0.68304196,42282.0,42281.0,0.24249623]
[1644789474161,0.82627198,42282.0,42281.0,0.24249623]
[1644789474362,1.15829798,42282.0,42281.0,0.24249623]
[1644789477007,1.15829798,42282.0,42281.0,0.15203036]
[1644789477008,0.82627198,42282.0,42281.0,0.15203036]
[1644789477609,0.82627198,42282.0,42281.0,0.15078664]
[1644789478011,0.82627198,42282.0,42281.0,0.14795546]
[1644789479615,1.15829798,42282.0,42281.0,0.14795546]
[1644789479813,0.82627198,42282.0,42281.0,0.14795546]
[1644789480660,0.87225602,42282.0,42281.0,0.06983993]
[1644789480859,0.62235602,42282.0,42281.0,0.01983993]
[1644789481059,0.67235602,42282.0,42281.0,0.01983993]
[1644789481259,0.529126,42282.0,42281.0,0.01983993]
[1644789481459,0.67235602,42282.0,42281.0,0.01983993]
[1644789482059,0.67235602,42282.0,42281.0,0.01964852]
[1644789482259,0.62235602,42282.0,42281.0,0.01964852]
[1644789482861,0.96237134,42282.0,42281.0,0.01964852]
[1644789483262,0.7,42280.0,42279.0,0.04305879]
[1644789483465,2.84172576,42280.0,42279.0,0.04305879]
[1644789483662,3.13495578,42280.0,42279.0,0.04305879]
[1644789483862,1.88495578,42280.0,42279.0,0.04305879]
[1644789484532,1.88495578,42280.0,42279.0,0.04185879]
[1644789484730,1.88495578,42280.0,42277.0,0.0011]
[1644789484731,1.71987432,42279.0,42277.0,0.0011]
[1644789484932,1.954029,42278.0,42277.0,0.0011]
[1644789485130,0.94725902,42278.0,42277.0,0.00155721]
[1644789485338,0.62235602,42278.0,42277.0,0.00155721]
[1644789485641,1.068387,42277.0,42266.0,0.0011813]
[1644789485831,0.429126,42276.0,42263.0,0.0005706]
[1644789486035,0.059201,42266.0,42263.0,0.0005706]
[1644789486237,1.25,42264.0,42263.0,0.0005706]
[1644789486434,0.63192419,42264.0,42263.0,0.0005706]
[1644789486631,0.332026,42263.0,42262.0,0.0999]
[1644789486831,0.479126,42263.0,42261.0,0.0999]
[1644789487032,0.40874702,42263.0,42253.0,0.29695316]
[1644789487231,0.40874702,42263.0,42251.0,0.0112471]
[1644789487232,0.34953802,42263.0,42251.0,0.0112471]
[1644789487432,0.34953802,42263.0,42261.0,0.0999]
[1644789487433,0.206308,42263.0,42261.0,0.0999]
[1644789487634,0.332026,42262.0,42261.0,0.09709576]
[1644789487874,0.265506,42262.0,42261.0,0.09709576]
[1644789488673,0.597532,42262.0,42261.0,0.14709576]
[1644789488876,0.265506,42262.0,42261.0,0.14709576]
[1644789489273,0.165506,42262.0,42261.0,0.14709576]
[1644789491711,1.415506,42262.0,42261.0,0.05572579]
[1644789491910,1.51523742,42262.0,42261.0,0.10572579]
[1644789492112,0.40846744,42262.0,42261.0,0.10572579]
[1644789492311,0.40846744,42262.0,42261.0,0.05]
[1644789492514,1.51523742,42262.0,42261.0,0.05]
[1644789492713,1.51523742,42262.0,42259.0,0.00030554]
[1644789492714,1.60155742,42262.0,42259.0,0.00030554]
[1644789492915,0.14323002,42261.0,42259.0,0.00030554]
[1644789493112,0.0471,42260.0,42259.0,0.00030554]
[1644789493314,0.0471,42260.0,42256.0,0.0021]
[1644789493622,0.059208,42259.0,42256.0,0.0021]
[1644789493815,0.0471,42258.0,42256.0,0.0021]
[1644789495278,0.0471,42258.0,42256.0,0.0009174]
[1644789497172,0.00279093,42257.0,42256.0,0.0009174]
[1644789497373,0.04989093,42257.0,42255.0,0.03622148]
[1644789497573,0.059205,42256.0,42255.0,0.03622148]
[1644789497774,0.109205,42256.0,42255.0,0.03622148]
[1644789497973,0.109205,42256.0,42255.0,0.03343042]
[1644789498173,0.109205,42256.0,42255.0,0.03312634]
[1644789500813,0.109205,42256.0,42255.0,0.03333615]
[1644789501114,0.109205,42256.0,42255.0,0.02558615]
[1644789505259,0.109205,42256.0,42255.0,0.0243621]
[1644789508118,0.109205,42256.0,42255.0,0.02151423]
[1644789508520,0.109205,42256.0,42255.0,0.35354023]
[1644789508722,0.177614,42257.0,42255.0,0.35354023]
[1644789508723,0.059205,42257.0,42255.0,0.35354023]
[1644789508922,0.059194,42258.0,42255.0,0.35354023]
[1644789508923,0.059191,42260.0,42257.0,0.08580771]
[1644789509226,0.059191,42260.0,42258.0,0.05]
[1644789509420,0.21862709,42261.0,42258.0,0.05]
[1644789509622,0.10024109,42261.0,42258.0,0.05020981]
[1644789509822,0.059189,42262.0,42258.0,0.00020981]
[1644789510019,0.21972063,42262.0,42257.0,0.00020981]
[1644789510264,0.21972063,42262.0,42258.0,0.00045166]
[1644789510464,0.09910291,42261.0,42258.0,0.00045166]
[1644789510663,0.10121529,42260.0,42258.0,0.33268747]
[1644789510868,0.109191,42260.0,42258.0,0.33268747]
[1644789511263,0.059191,42260.0,42258.0,0.05020981]
[1644789511870,0.15246086,42260.0,42258.0,0.00020981]
[1644789512064,0.15246086,42260.0,42257.0,0.33247767]
[1644789512065,0.059191,42260.0,42257.0,0.33247767]
[1644789512264,0.059191,42260.0,42257.0,0.05045167]
[1644789512565,0.059191,42260.0,42256.0,0.00020981]
[1644789512863,0.059191,42260.0,42258.0,0.05]
[1644789513266,0.059191,42260.0,42259.0,0.332026]
[1644789513466,0.059191,42260.0,42259.0,0.15591181]
[1644789515215,0.059191,42260.0,42259.0,0.15472697]
[1644789516617,0.059191,42260.0,42259.0,0.36697455]
[1644789516821,0.09845588,42265.0,42259.0,0.36697455]
[1644789517028,0.10520774,42265.0,42262.0,0.332002]
[1644789517216,1.3373,42275.0,42262.0,0.429102]
[1644789517418,0.14787097,42274.0,42263.0,0.3]
[1644789517623,0.00014832,42270.0,42262.0,0.3971]
[1644789517873,0.059179,42268.0,42261.0,0.3]
[1644789518070,0.09798485,42268.0,42260.0,0.227573]
[1644789518273,0.09669489,42266.0,42263.0,0.059183]
[1644789518470,0.09534765,42266.0,42264.0,0.332076]
[1644789518670,0.1474883,42266.0,42264.0,0.332076]
[1644789518871,0.15473692,42266.0,42264.0,0.382076]
[1644789519070,0.05,42266.0,42264.0,0.382076]
[1644789519271,0.118369,42266.0,42265.0,0.1546]
[1644789519470,0.059185,42266.0,42265.0,0.332076]
[1644789519675,0.059185,42266.0,42265.0,0.05]
[1644789519872,0.059185,42266.0,42265.0,0.25703486]
[1644789520070,0.16001617,42266.0,42265.0,0.33087775]
[1644789520274,0.16001617,42266.0,42265.0,0.05]
[1644789520670,0.16001617,42266.0,42265.0,0.33207]
[1644789520870,0.059185,42266.0,42265.0,0.153401]
[1644789521072,0.16245153,42266.0,42265.0,0.38207]
[1644789521814,0.059185,42266.0,42265.0,0.38207]
[1644789522123,0.118363,42271.0,42265.0,0.38207]
[1644789522124,0.14789961,42279.0,42267.0,0.153392]
[1644789522325,0.14789961,42279.0,42268.0,0.3971]
[1644789522515,0.296079,42286.0,42269.0,0.332036]
[1644789522714,0.17435537,42289.0,42271.0,0.33207]
[1644789522715,0.0985203,42277.0,42271.0,0.33207]
[1644789522914,0.10058051,42276.0,42272.0,0.0471]
[1644789523113,0.22331977,42280.0,42272.0,0.0471]
[1644789523315,0.10193707,42274.0,42272.0,0.106271]
[1644789523517,0.05,42275.0,42273.0,0.33207]
[1644789523816,0.0004526,42276.0,42273.0,0.33207]
[1644789524221,0.0004526,42276.0,42274.0,0.28189655]
[1644789524415,0.0004526,42276.0,42275.0,0.15329]
[1644789524615,0.10410819,42281.0,42275.0,0.42573812]
[1644789524819,0.1,42289.0,42276.0,0.33207]
[1644789524820,0.0004526,42277.0,42276.0,0.33207]
[1644789525016,0.0004526,42277.0,42276.0,0.59360376]
[1644789525269,0.0354526,42279.0,42276.0,0.64360376]
[1644789525464,0.0354526,42279.0,42277.0,0.153252]
[1644789525663,0.0354526,42279.0,42277.0,0.203252]
[1644789526765,0.0354526,42279.0,42277.0,0.45862659]
[1644789526964,0.0354526,42279.0,42277.0,0.203252]
[1644789527166,0.0946226,42279.0,42277.0,0.38207]
[1644789527369,0.0946226,42279.0,42277.0,0.33207]
[1644789527567,0.19508091,42279.0,42274.0,0.1055]
[1644789527766,0.10110238,42277.0,42275.0,0.33207]
[1644789528265,0.21027338,42277.0,42275.0,0.33207]
[1644789528466,0.32861738,42277.0,42275.0,0.33207]
[1644789528866,0.09880867,42276.0,42274.0,0.43757]
[1644789529818,0.33091254,42277.0,42274.0,0.43757]
[1644789530022,0.33091254,42277.0,42275.0,0.153279]
[1644789530219,0.227515,42277.0,42275.0,0.153271]
[1644789530418,0.10022871,42276.0,42274.0,0.43757]
[1644789531017,0.0980483,42276.0,42274.0,0.43757]
[1644789531218,0.168342,42277.0,42275.0,0.25581743]
[1644789531219,0.109171,42277.0,42275.0,0.25581743]
[1644789531418,0.05,42277.0,42275.0,0.58287943]
[1644789531622,0.05,42277.0,42276.0,0.26074573]
[1644789531818,0.15651651,42279.0,42276.0,0.41402073]
[1644789532020,0.05931293,42279.0,42277.0,0.332045]
[1644789532219,0.05,42278.0,42277.0,0.332045]
[1644789532420,0.104167,42278.0,42276.0,0.05]
[1644789532861,0.104167,42278.0,42276.0,0.33207]
[1644789533064,0.045,42278.0,42276.0,0.33207]
[1644789533264,0.059169,42277.0,42275.0,0.33207]
[1644789533662,0.059169,42277.0,42276.0,0.153267]
[1644789533861,0.059169,42277.0,42276.0,0.40794354]
[1644789534062,0.059169,42277.0,42276.0,0.153267]
[1644789534363,0.059169,42277.0,42276.0,0.4085191]
[1644789534860,0.11834,42277.0,42276.0,0.4085191]
[1644789538918,0.11834,42277.0,42276.0,0.153267]
[1644789540367,0.11834,42277.0,42275.0,0.05]
[1644789540575,0.11834,42277.0,42276.0,0.33207]
[1644789540769,0.11834,42277.0,42276.0,0.05]
[1644789541069,0.11834,42277.0,42276.0,0.153267]
[1644789541267,0.11834,42277.0,42275.0,0.33207]
[1644789541467,0.11834,42277.0,42276.0,0.25525959]
[1644789541667,0.11834,42277.0,42276.0,0.33207]
[1644789542069,0.11834,42277.0,42276.0,0.153258]
[1644789542270,0.11834,42277.0,42276.0,0.203258]
[1644789543270,0.11834,42277.0,42276.0,0.05]
[1644789543671,0.11834,42277.0,42275.0,0.0555]
[1644789544125,0.118352,42276.0,42275.0,0.0555]
[1644789551512,0.450422,42276.0,42275.0,0.0555]
[1644789551713,0.118352,42276.0,42275.0,0.0555]
[1644789554116,0.118352,42276.0,42266.0,0.92337981]
[1644789554117,0.797522,42276.0,42264.0,0.00020962]
[1644789554314,0.797522,42276.0,42263.0,0.00020962]
[1644789554315,0.11838594,42273.0,42263.0,0.00020962]
[1644789554516,0.059199,42270.0,42261.0,0.00020962]
[1644789554817,0.19642193,42269.0,42261.0,0.00020962]
[1644789555015,0.19642193,42269.0,42267.0,0.0999]
[1644789555016,0.23819971,42268.0,42267.0,0.0999]
[1644789555270,0.23819971,42268.0,42266.0,0.0999]
[1644789555471,0.29739346,42268.0,42257.0,0.00020962]
[1644789555672,0.059194,42267.0,42266.0,0.0999]
[1644789555870,0.106294,42267.0,42266.0,0.0999]
[1644789556470,0.096294,42267.0,42266.0,0.0999]
[1644789557271,0.37809353,42267.0,42266.0,0.0999]
[1644789558073,0.32889953,42267.0,42266.0,0.0999]
[1644789562769,0.42889953,42267.0,42266.0,0.0999]
[1644789568918,0.4280979,42267.0,42266.0,0.0999]
[1644789570118,1.6780979,42267.0,42266.0,0.0999]
[1644789570364,1.6780979,42267.0,42266.0,0.0949]
[1644789570564,0.58151046,42267.0,42266.0,0.0949]
[1644789570862,1.83151046,42267.0,42266.0,0.0949]
[1644789571065,1.83151046,42267.0,42264.0,0.00045275]
[1644789571261,0.450486,42265.0,42264.0,0.00045275]
[1644789571463,0.80694058,42265.0,42261.0,0.00020962]
[1644789571667,0.80694058,42265.0,42263.0,0.00045218]
[1644789571668,0.90694058,42265.0,42263.0,0.00045218]
[1644789571864,0.6280289,42264.0,42263.0,0.00045218]
[1644789572064,0.8527529,42264.0,42263.0,0.00045218]
[1644789572268,0.9527529,42264.0,42263.0,0.00045218]
[1644789572466,1.10616546,42264.0,42263.0,0.00045218]
[1644789572665,0.26646139,42262.0,42261.0,0.00020962]
[1644789572867,0.6718241,42262.0,42261.0,0.0004522]
[1644789573066,0.6718241,42262.0,42261.0,0.00066182]
[1644789573365,1.1038941,42262.0,42261.0,0.00066182]
[1644789573564,1.25730666,42262.0,42261.0,0.00066182]
[1644789573767,0.92523666,42262.0,42261.0,0.00020962]
[1644789574019,0.92523666,42262.0,42259.0,0.00045221]
[1644789574222,0.6170877,42261.0,42260.0,0.17778262]
[1644789574419,0.5505317,42261.0,42260.0,0.17778262]
[1644789574618,0.70394426,42261.0,42260.0,0.17778262]
[1644789575020,0.5505317,42261.0,42260.0,0.17778262]
[1644789575221,0.5505317,42261.0,42260.0,0.177573]
[1644789575421,0.265514,42261.0,42260.0,0.177573]
[1644789575819,0.165514,42261.0,42260.0,0.177573]
[1644789577963,0.78127778,42261.0,42260.0,0.177573]
[1644789578163,0.45250758,42261.0,42260.0,0.177573]
[1644789578365,0.75099656,42261.0,42260.0,0.177573]
[1644789578563,0.597584,42261.0,42260.0,0.177573]
[1644789578762,0.75099656,42261.0,42260.0,0.177573]
[1644789578963,0.41892656,42261.0,42260.0,0.17778262]
[1644789579168,0.75099656,42261.0,42260.0,0.177573]
[1644789579368,0.265514,42261.0,42260.0,0.177573]
[1644789579863,0.165514,42261.0,42260.0,0.177573]
[1644789582124,0.118414,42261.0,42260.0,0.177573]
[1644789582723,0.118405,42262.0,42261.0,0.153461]
[1644789582920,0.118405,42262.0,42261.0,0.33227962]
[1644789582921,0.059206,42262.0,42261.0,0.33227962]
[1644789583120,0.059206,42262.0,42261.0,0.08057094]
[1644789583423,0.059206,42262.0,42261.0,0.41264094]
[1644789583620,0.3,42271.0,42261.0,0.41264094]
[1644789583821,0.118362,42271.0,42261.0,0.08057094]
[1644789584021,0.059181,42268.0,42261.0,0.08057094]
[1644789584320,0.059181,42268.0,42262.0,0.33207]
[1644789584526,0.118363,42268.0,42263.0,0.059182]
[1644789584720,0.059182,42268.0,42265.0,0.332045]
[1644789584920,0.059182,42268.0,42263.0,0.33207]
[1644789585567,0.059182,42267.0,42263.0,0.391255]
[1644789585772,0.059184,42266.0,42265.0,0.153416]
[1644789586573,0.118367,42266.0,42265.0,0.153416]
[1644789586770,0.118367,42266.0,42264.0,0.19442236]
[1644789586969,0.118367,42266.0,42262.0,0.00020962]
[1644789587273,0.118367,42266.0,42263.0,0.33207]
[1644789589717,0.22317585,42266.0,42262.0,0.00020962]
[1644789590022,0.118371,42267.0,42261.0,0.09490962]
[1644789590023,0.118383,42264.0,42261.0,0.09490962]
[1644789590215,0.2125396,42264.0,42261.0,0.09490962]
[1644789590417,0.3309276,42264.0,42261.0,0.09490962]
[1644789591219,0.09162277,42262.0,42261.0,0.09490962]
[1644789592016,0.059189,42263.0,42261.0,0.09490962]
[1644789593067,0.059189,42263.0,42261.0,0.09481704]
[1644789593567,0.47131853,42262.0,42261.0,0.09481704]
[1644789593766,0.37917,42262.0,42261.0,0.09481704]
[1644789594367,0.47917,42262.0,42261.0,0.00020962]
[1644789594668,0.391274,42261.0,42260.0,0.177573]
[1644789594865,0.538374,42261.0,42260.0,0.17778262]
[1644789595271,0.206304,42261.0,42260.0,0.17778262]
[1644789595666,0.538374,42261.0,42260.0,0.177573]
[1644789595866,0.48679233,42261.0,42260.0,0.177573]
[1644789596069,0.48679233,42261.0,42260.0,0.17778262]
[1644789596516,0.48679233,42261.0,42260.0,0.177573]
[1644789596716,0.48679233,42261.0,42260.0,0.17778262]
[1644789596917,0.48679233,42261.0,42260.0,0.177573]
[1644789597319,0.538374,42261.0,42260.0,0.17778262]
[1644789597519,0.48769563,42261.0,42260.0,0.177573]
[1644789597721,0.48769563,42261.0,42260.0,0.17778262]
[1644789597926,0.81976563,42261.0,42260.0,0.17778262]
[1644789598320,0.97317819,42261.0,42260.0,0.17778262]
[1644789598620,0.64110819,42261.0,42260.0,0.17778262]
[1644789598821,0.64110819,42261.0,42260.0,0.177573]
[1644789599020,0.48769563,42261.0,42260.0,0.227573]
[1644789599219,0.1471,42261.0,42260.0,0.227573]
[1644789599422,0.0471,42261.0,42260.0,0.227573]
[1644789600022,0.32795429,42261.0,42260.0,0.227573]
[1644789600280,0.1471,42261.0,42260.0,0.227573]
[1644789600473,0.30051256,42261.0,42260.0,0.227573]
[1644789600668,0.58104575,42261.0,42260.0,0.227573]
[1644789600868,0.30051256,42261.0,42260.0,0.227573]
[1644789601266,0.58697425,42261.0,42260.0,0.227573]
[1644789601468,0.33356169,42261.0,42260.0,0.227573]
[1644789601668,0.58697425,42261.0,42260.0,0.227573]
[1644789602068,0.43356169,42261.0,42260.0,0.227573]
[1644789602269,0.58953423,42261.0,42260.0,0.227573]
[1644789602468,0.92160423,42261.0,42260.0,0.227573]
[1644789602670,0.58953423,42261.0,42260.0,0.227573]
[1644789603569,0.30307254,42261.0,42260.0,0.227573]
[1644789603772,0.04965998,42261.0,42260.0,0.227573]
[1644789604031,0.00255998,42261.0,42260.0,0.227573]
[1644789605430,0.00255998,42261.0,42260.0,0.559643]
[1644789606233,0.00255998,42261.0,42260.0,0.84804091]
[1644789608576,0.00255998,42261.0,42260.0,0.94254091]
[1644789609176,0.06677636,42261.0,42260.0,0.94254091]
[1644789609578,0.06677636,42261.0,42260.0,0.654143]
[1644789611081,0.06677636,42261.0,42260.0,0.82815208]
[1644789613027,0.06677636,42261.0,42260.0,0.654143]
[1644789615370,0.06677636,42261.0,42260.0,0.65405392]
[1644789618577,0.06677636,42261.0,42260.0,0.604143]
[1644789618779,0.06677636,42261.0,42260.0,0.272073]
[1644789620623,0.39884636,42261.0,42260.0,0.272073]
[1644789620820,0.16677636,42261.0,42260.0,0.272073]
[1644789621620,0.16677636,42261.0,42260.0,0.322073]
[1644789622121,0.06677636,42261.0,42260.0,0.322073]
[1644789628632,0.06677636,42261.0,42260.0,0.654143]
[1644789632477,0.06666835,42261.0,42260.0,0.654143]
[1644789637433,0.06666835,42261.0,42260.0,0.322073]
[1644789637882,0.06666835,42261.0,42260.0,0.272073]
[1644789639285,0.06666835,42261.0,42260.0,0.322073]
[1644789639488,0.06666835,42261.0,42260.0,0.317073]
[1644789650717,0.06666835,42261.0,42260.0,0.649143]
[1644789650918,0.06666835,42261.0,42260.0,0.317073]
[1644789651718,0.06666835,42261.0,42260.0,0.649143]
[1644789654182,0.06666835,42261.0,42260.0,0.599143]
[1644789654979,0.06666835,42261.0,42260.0,0.584143]
[1644789655382,0.06666835,42261.0,42260.0,0.252073]
[1644789655782,0.06666835,42261.0,42260.0,0.302073]
[1644789659422,0.18506735,42261.0,42260.0,0.102073]
[1644789659822,0.18506735,42261.0,42260.0,0.092073]
[1644789660025,0.15295916,42261.0,42260.0,0.092073]
[1644789660277,0.18006735,42261.0,42260.0,0.092073]
[1644789662275,0.18006735,42261.0,42260.0,0.142073]
[1644789663077,0.06166835,42261.0,42260.0,0.142073]
[1644789663377,0.06166835,42261.0,42260.0,0.241973]
[1644789667867,0.06166835,42261.0,42260.0,0.1499]
[1644789672823,0.06166835,42261.0,42260.0,0.303365]
[1644789673422,0.06166835,42261.0,42260.0,0.48197]
[1644789673621,0.06166835,42261.0,42260.0,0.1499]
[1644789674222,0.06166835,42261.0,42260.0,0.48197]
[1644789674423,0.06166835,42261.0,42260.0,0.1499]
[1644789674623,0.06166835,42261.0,42260.0,0.303365]
[1644789674823,0.06166835,42261.0,42260.0,0.1499]
[1644789675026,0.06166835,42261.0,42260.0,0.303365]
[1644789676671,0.06166835,42261.0,42260.0,0.1499]
[1644789680126,0.06166835,42261.0,42260.0,0.14980408]
[1644789687635,0.06006462,42261.0,42260.0,0.14980408]
[1644789687834,0.02956016,42261.0,42260.0,0.14980408]
[1644789688033,0.06006462,42261.0,42260.0,0.14980408]
[1644789699776,0.06006462,42261.0,42250.0,0.23442029]
[1644789699978,0.059202,42258.0,42251.0,0.32707]
[1644789700375,0.02710819,42256.0,42251.0,0.32707]
[1644789700576,0.05761265,42256.0,42253.0,0.08264262]
[1644789700777,0.05761265,42256.0,42254.0,0.253465]
[1644789700978,0.05761265,42256.0,42255.0,0.327036]
[1644789701378,0.11681465,42256.0,42255.0,0.377036]
[1644789701622,0.16926662,42256.0,42255.0,0.377036]
[1644789704928,0.11926662,42256.0,42255.0,0.377036]
[1644789705131,0.06006462,42256.0,42255.0,0.377036]
[1644789705376,0.06006462,42256.0,42255.0,0.64293095]
[1644789705777,0.05965128,42258.0,42255.0,0.64293095]
[1644789705778,0.05965128,42258.0,42256.0,0.12012923]
[1644789705977,0.059201,42258.0,42257.0,0.39649262]
[1644789706178,0.059201,42258.0,42257.0,0.44649262]
[1644789706878,0.00045027,42259.0,42257.0,0.44649262]
[1644789707081,0.00045027,42259.0,42258.0,0.56945993]
[1644789707276,0.059185,42260.0,42258.0,0.61945993]
[1644789707484,0.11837,42264.0,42260.0,0.08018756]
[1644789707679,0.11837,42264.0,42261.0,0.326987]
[1644789707879,0.006878,42265.0,42261.0,0.326987]
[1644789708080,0.05918,42264.0,42261.0,0.326987]
[1644789709030,0.05925141,42264.0,42261.0,0.326987]
[1644789709230,0.10925141,42264.0,42261.0,0.326987]
[1644789709931,0.05,42263.0,42261.0,0.63164194]
[1644789710131,0.05932282,42264.0,42261.0,0.386177]
[1644789710332,0.05,42263.0,42261.0,0.386177]
[1644789710531,0.05130419,42263.0,42261.0,0.386177]
[1644789710932,0.0513756,42263.0,42261.0,0.386177]
[1644789711132,0.1105646,42263.0,42261.0,0.386177]
[1644789711531,0.0513756,42263.0,42261.0,0.386177]
[1644789711731,0.05267979,42263.0,42261.0,0.386177]
[1644789712136,0.0527512,42263.0,42261.0,0.386177]
[1644789712632,0.05405539,42263.0,42261.0,0.386177]
[1644789713077,0.0541268,42263.0,42261.0,0.386177]
[1644789713681,0.05543099,42263.0,42261.0,0.386177]
[1644789713879,0.05543099,42263.0,42262.0,0.24062324]
[1644789714080,0.0555024,42263.0,42261.0,0.386177]
[1644789714280,0.0555024,42263.0,42261.0,0.486078]
[1644789714685,0.05680659,42263.0,42262.0,0.05]
[1644789715079,0.056878,42263.0,42262.0,0.05]
[1644789715679,0.05818219,42263.0,42262.0,0.05]
[1644789716083,0.0582536,42263.0,42262.0,0.05]
[1644789716720,0.05955779,42263.0,42262.0,0.05]
[1644789717120,0.0596292,42263.0,42262.0,0.05]
[1644789717720,0.06093339,42263.0,42262.0,0.05]
[1644789718122,0.06093339,42263.0,42261.0,0.436178]
[1644789718322,0.1201958,42263.0,42261.0,0.436178]
[1644789718922,0.12149999,42263.0,42261.0,0.436178]
[1644789719225,0.1215714,42263.0,42261.0,0.436178]
[1644789719826,0.12287559,42263.0,42261.0,0.436178]
[1644789720272,0.122947,42263.0,42261.0,0.436178]
[1644789720969,0.12425119,42263.0,42261.0,0.436178]
[1644789721368,0.1243226,42263.0,42261.0,0.536078]
[1644789721969,0.12562679,42263.0,42261.0,0.536078]
[1644789722475,0.1256982,42263.0,42261.0,0.536078]
[1644789722873,0.12700239,42263.0,42261.0,0.536078]
[1644789723473,0.1270738,42263.0,42261.0,0.436178]
[1644789723673,0.1270738,42263.0,42261.0,0.536078]
[1644789723873,0.12837799,42263.0,42261.0,0.536078]
[1644789724130,0.12837799,42263.0,42262.0,0.2676165]
[1644789724131,0.06918699,42263.0,42262.0,0.2676165]
[1644789724929,0.07049118,42263.0,42262.0,0.2676165]
[1644789725136,0.07049118,42263.0,42262.0,0.4211425]
[1644789725329,0.07049118,42263.0,42262.0,0.2676165]
[1644789725732,0.06918699,42263.0,42261.0,0.536078]
[1644789726533,0.0692584,42263.0,42261.0,0.362619]
[1644789726932,0.0692584,42263.0,42262.0,0.25587049]
[1644789727434,0.1284484,42263.0,42261.0,0.362619]
[1644789727639,0.1284484,42263.0,42262.0,0.25542808]
[1644789727876,0.1284484,42263.0,42261.0,0.36262]
[1644789729778,0.1284484,42263.0,42261.0,0.61996413]
[1644789729980,0.1284484,42263.0,42261.0,0.36262]
[1644789730183,0.12835188,42263.0,42262.0,0.25763157]
[1644789730580,0.12842329,42263.0,42262.0,0.25763157]
[1644789730779,0.12835188,42263.0,42262.0,0.25763157]
[1644789731623,0.12835188,42263.0,42261.0,0.36262]
[1644789733328,0.06916188,42263.0,42261.0,0.52666534]
[1644789733525,0.06916188,42263.0,42262.0,0.16311803]
[1644789733726,0.06916188,42263.0,42261.0,0.36262]
[1644789734728,0.06916188,42263.0,42262.0,0.21198559]
[1644789734929,0.06916188,42263.0,42261.0,0.36262]
[1644789735134,0.06916188,42263.0,42261.0,0.0999]
[1644789735385,0.217462,42262.0,42261.0,0.0999]
[1644789735580,0.517462,42262.0,42261.0,0.0193632]
[1644789735775,0.676674,42262.0,42257.0,0.00020603]
[1644789735978,0.05,42259.0,42256.0,0.12012923]
[1644789736180,0.0471,42258.0,42256.0,0.12012923]
[1644789736376,0.0471,42257.0,42256.0,0.12012923]
[1644789736977,0.04840419,42257.0,42256.0,0.12012923]
[1644789737275,0.15761719,42257.0,42256.0,0.12012923]
[1644789737675,0.46063916,42257.0,42256.0,0.12012923]
[1644789737880,0.56071057,42257.0,42256.0,0.12012923]
[1644789738075,0.56201476,42257.0,42256.0,0.12012923]
[1644789738276,0.56201476,42257.0,42256.0,0.75222723]
[1644789738277,0.31240535,42257.0,42256.0,0.75222723]
[1644789738479,0.31240535,42257.0,42256.0,0.45222723]
[1644789738480,0.05267979,42257.0,42256.0,0.45222723]
[1644789738677,0.00267979,42257.0,42256.0,0.45222723]
[1644789738875,0.0027512,42257.0,42256.0,0.45222723]